fUSD/lending_fUSD_20241030
["ID","MTS","AMOUNT","RATE_DAILY","PERIOD"]
[341014327,1730246462412,250.0,0.00036227,120]
[341014328,1730246469114,61.36,0.00036227,2]
[341014330,1730246726811,158.68,0.00015342,2]
[341014331,1730246948156,-158.68,0.0003272,2]
[341014332,1730246957094,-375.26,0.00034145,2]
[341014333,1730246969459,497.64743575,0.00015,2]
[341014334,1730247015794,260.25,0.00034041,2]
[341014339,1730247038215,-426.18879117,0.0003437,2]
[341014340,1730247038270,-7.57120883,0.0003437,2]
[341014341,1730247038280,-260.25,0.00035385,2]
[341014342,1730247038291,-226.88,0.00035725,2]
[341014343,1730247038301,-433.76,0.00035727,2]
[341014344,1730247038311,-250.0,0.00035737,2]
[341014345,1730247038321,-257.16,0.00035737,2]
[341014346,1730247038331,-4.37879122,0.00035737,2]
[341014347,1730247038342,-2826.11191164,0.00035737,2]
[341014348,1730247038352,-5110.82,0.00035802,2]
[341014349,1730247038361,-150.99,0.00035802,2]
[341014350,1730247038370,-1440.0,0.00035802,2]
[341014351,1730247038380,-200.0,0.00035823,2]
[341014352,1730247038390,-168.94,0.00035838,2]
[341014353,1730247038399,-150.0,0.0003586,7]
[341014354,1730247038408,-23900.0,0.00035906,2]
[341014355,1730247038418,-288.93,0.00035915,2]
[341014356,1730247038428,-150.0,0.00035975,2]
[341014357,1730247038437,-6784.47,0.00035975,2]
[341014358,1730247038447,-1000.0,0.00036087,2]
[341014359,1730247038456,-375.26,0.00036409,2]
[341014360,1730247038466,-231.313,0.00036535,45]
[341014361,1730247038475,-166.62,0.00036611,120]
[341014362,1730247038485,-431.34,0.00036678,2]
[341014363,1730247038494,-260.25,0.00036728,2]
[341014364,1730247038504,-111.69909667,0.0003675,5]
[341014365,1730247038515,-314.09587931,0.0003675,5]
[341014366,1730247038562,-1152.4263648,0.0003675,5]
[341014367,1730247038572,-431.34,0.00036986,2]
[341014368,1730247038582,-431.34,0.00036986,2]
[341014369,1730247038592,-431.34,0.00036986,2]
[341014370,1730247038601,-431.34,0.00036986,2]
[341014371,1730247038611,-431.34,0.00036986,2]
[341014372,1730247038620,-431.34,0.00036986,2]
[341014373,1730247038630,-431.34,0.00036986,2]
[341014374,1730247038640,-431.34,0.00036986,2]
[341014375,1730247038649,-143.16520939,0.00036986,2]
[341014376,1730247038666,-288.17479061,0.00036986,2]
[341014377,1730247038675,-433.76,0.00037083,2]
[341014378,1730247038685,-1700.65726558,0.000374,2]
[341014379,1730247038693,-1488.93117871,0.000374,2]
[341014380,1730247038703,-155.22810207,0.000374,2]
[341014381,1730247038712,-150.412,0.00037446,2]
[341014382,1730247038722,-249.535,0.00037446,2]
[341014383,1730247038732,-2205.0,0.00037446,2]
[341014384,1730247038741,-811.0,0.00037446,2]
[341014385,1730247038751,-500.0,0.00037473,2]
[341014386,1730247038761,-171.39,0.0003749,10]
[341014387,1730247038770,-267.59,0.0003749,10]
[341014388,1730247038780,-223.0,0.0003749,10]
[341014389,1730247038790,-1046.96735735,0.00037499,2]
[341014390,1730247038799,-5262.51058096,0.00037499,120]
[341014391,1730247038809,-500.0,0.00037499,2]
[341014392,1730247038818,-9670.13,0.00037499,120]
[341014393,1730247038828,-500.0,0.00037499,2]
[341014394,1730247038837,-4314.93259265,0.000375,2]
[341014395,1730247038847,-6489.90846703,0.000375,2]
[341014396,1730247038859,-1620.00011,0.000375,2]
[341014397,1730247038879,-1729.06733478,0.000375,2]
[341014398,1730247038890,-2216.38758432,0.000375,2]
[341014435,1730247040233,-39517.17453105,0.000375,2]
[341014438,1730247040290,-11869.86471808,0.000375,2]
[341014440,1730247040303,-8089.00012,0.000375,2]
[341014445,1730247040342,-2587.22170099,0.000375,2]
[341014447,1730247040353,-1664.1735019,0.000375,2]
[341014453,1730247040410,-788.01284701,0.000375,2]
[341014463,1730247040505,-63908.62982891,0.000375,2]
[341014465,1730247040515,-88621.41108724,0.000375,30]
[341014467,1730247040528,-2071.13756202,0.000375,30]
[341014495,1730247043191,-431.34,0.00036986,2]
[341014496,1730247043201,-1098.10654106,0.000375,30]
[341014497,1730247043399,-871.49345414,0.000375,30]
[341014498,1730247043411,-558758.92562992,0.000375,30]
[341014499,1730247043423,-561.56500374,0.000375,30]
[341014500,1730247043474,-5076.17337535,0.000375,30]
[341014501,1730247043490,-408.28333668,0.000375,30]
[341014502,1730247043501,-281.326473,0.000375,30]
[341014503,1730247043516,-552.73717158,0.000375,30]
[341014504,1730247043527,-436.44200597,0.000375,30]
[341014505,1730247043539,-782.77998016,0.000375,30]
[341014571,1730247046209,-223.0,0.0003749,10]
[341014572,1730247046218,-3128.97712188,0.000375,30]
[341014573,1730247046229,-57344.94545252,0.000375,30]
[341014574,1730247046239,-943.31862009,0.000375,30]
[341014576,1730247046261,-812.74759037,0.000375,30]
[341014578,1730247046273,-734.01641473,0.000375,30]
[341014580,1730247046285,-603.28558204,0.000375,30]
[341014582,1730247046409,-2157.63,0.000375,30]
[341014583,1730247046421,-588.94,0.000375,30]
[341014584,1730247046455,-8639.99982282,0.000375,30]
[341014585,1730247046468,-10319.83812377,0.000375,30]
[341014586,1730247046479,-51629.08238237,0.000375,30]
[341014587,1730247046490,-3929.113636,0.000375,30]
[341014588,1730247046502,-1022.82261706,0.000375,30]
[341014589,1730247046525,-788.73379131,0.000375,30]
[341014590,1730247046538,-11566.22009105,0.000375,30]
[341014591,1730247046628,-7874.96601383,0.000375,30]
[341014596,1730247401002,171.24,0.00015342,2]
[341014597,1730247907764,189828.98761317,0.00016,2]
[341014598,1730247945119,-751.0,0.000334,3]
[341014599,1730247945140,-401.43,0.00033765,2]
[341014600,1730247945161,-346.43,0.00034604,2]
[341014601,1730247945182,-250.0,0.00035623,2]
[341014602,1730247945203,-289.47,0.00035628,2]
[341014603,1730247945224,-150.0,0.00035666,7]
[341014604,1730247945245,-2059.82,0.00035666,2]
[341014605,1730247945266,-150.99,0.00035666,2]
[341014606,1730247945290,-150.0,0.00035691,2]
[341014607,1730247945314,-221.01,0.00035691,2]
[341014608,1730247945335,-3103.17,0.00035755,2]
[341014609,1730247945357,-250.0,0.00035767,2]
[341014610,1730247945378,-1051.8,0.0003586,2]
[341014611,1730247945400,-5112.05,0.0003586,2]
[341014612,1730247945421,-331.82,0.0003586,2]
[341014613,1730247945444,-298.86,0.00035899,2]
[341014614,1730247945466,-346.43,0.0003597,2]
[341014615,1730247945487,-333.94,0.00035998,2]
[341014616,1730247945509,-401.43,0.00036029,2]
[341014617,1730247945531,-999.99,0.00036038,2]
[341014618,1730247945552,-1160.0,0.00036385,2]
[341014619,1730247945573,-24792.0,0.00036386,2]
[341014620,1730247945594,-170.85,0.00036425,2]
[341014621,1730247945615,-251.05288632,0.00036425,2]
[341014622,1730247953099,-242.20778386,0.00035444,2]
[341014624,1730248030099,157.21,0.00015342,2]
[341014625,1730248088994,37307.01040468,0.00015,2]
[341014626,1730248089016,13008.71426902,0.00015,2]
[341014627,1730248146098,-189.784411,0.00020895,2]
[341014628,1730248146120,-4380.01866057,0.00021,4]
[341014629,1730248146143,-18770.69433396,0.00022,2]
[341014630,1730248146166,-892.0,0.0003299,10]
[341014631,1730248146186,-287.60496171,0.00032999,7]
[341014632,1730248146205,-16147.07425276,0.00033,2]
[341014633,1730248147087,-27594.10598,0.00033,2]
[341014634,1730248157094,-72776.9462,0.00033,2]
[341014635,1730248163129,-6938.478498,0.00033,2]
[341014636,1730248164087,-6328.111076,0.00033,2]
[341014637,1730248168097,-2982.676648,0.00033,2]
[341014638,1730248174169,-183541.22148516,0.00033,2]
[341014652,1730248232318,-5428.34057279,0.0003299,2]
[341014653,1730248232329,-4906.44006086,0.0003299,2]
[341014654,1730248232338,-8901.16790285,0.00033,2]
[341014655,1730248232349,-2043.73962919,0.00033,2]
[341014656,1730248232428,-847.03388265,0.00033,2]
[341014657,1730248232486,-1200.0,0.00033,2]
[341014658,1730248232498,-1531.29710236,0.00033,2]
[341014659,1730248232543,-671.68,0.00033,2]
[341014660,1730248232554,-9255.13457725,0.00033,2]
[341014661,1730248232604,-34526.51666601,0.00033,2]
[341014662,1730248232613,-173.5,0.00034403,2]
[341014663,1730248232623,-592.81,0.00034403,2]
[341014664,1730248232632,-61834.0411051,0.00035,2]
[341014665,1730248232642,-72205.41873346,0.00035,2]
[341014669,1730248238380,-2689.78201,0.00035,2]
[341014670,1730248238391,-1892.27757239,0.00035,2]
[341014671,1730248238489,-12724.38090403,0.00035,2]
[341014672,1730248238652,-19192.90253334,0.00035,2]
[341014673,1730248238709,-865.1330739,0.00035,2]
[341014687,1730248243802,-500.0,0.00034999,7]
[341014688,1730248243813,-500.0,0.00034999,7]
[341014689,1730248243822,-391.52761736,0.00034999,7]
[341014690,1730248243832,-29743.06172172,0.00035,2]
[341014691,1730248243842,-900.0,0.00035,36]
[341014692,1730248243852,-151.385,0.0003544,2]
[341014693,1730248243861,-1955.8,0.00035848,2]
[341014694,1730248243870,-900.0,0.00036,37]
[341014695,1730248243880,-509.64,0.00036049,2]
[341014696,1730248243890,-431.34,0.00036164,2]
[341014697,1730248243900,-431.34,0.00036164,2]
[341014698,1730248243910,-431.34,0.00036164,2]
[341014699,1730248243920,-431.34,0.00036164,2]
[341014700,1730248243929,-431.34,0.00036164,2]
[341014701,1730248243939,-279.47,0.00036329,2]
[341014702,1730248243949,-1026.63802195,0.00036424,2]
[341014703,1730248243959,-1000.0,0.00036425,2]
[341014704,1730248243969,-477.03,0.00036425,2]
[341014705,1730248243979,-4128.37260897,0.00036425,2]
[341014706,1730248243992,-3151.36944735,0.00036425,2]
[341014707,1730248244040,-4084.31794368,0.00036425,2]
[341014708,1730248244050,-200.0,0.00036425,2]
[341014709,1730248244060,-257.75,0.00036425,2]
[341014710,1730248244070,-23900.0,0.00036425,2]
[341014711,1730248244079,-431.34,0.00036478,2]
[341014712,1730248244088,-431.34,0.000365,2]
[341014713,1730248244098,-185.051,0.00036584,45]
[341014714,1730248244107,-431.34,0.00036678,2]
[341014715,1730248244117,-357.10513701,0.0003679,2]
[341014716,1730248244126,-156.99,0.0003692,2]
[341014717,1730248244136,-150.0,0.00036966,2]
[341014718,1730248244145,-168.6,0.00036966,2]
[341014719,1730248244154,-431.34,0.00036986,2]
[341014720,1730248244164,-431.34,0.00036986,2]
[341014721,1730248244173,-431.34,0.00036986,2]
[341014722,1730248244183,-431.34,0.00036986,2]
[341014723,1730248244192,-431.34,0.00036986,2]
[341014724,1730248244202,-431.34,0.00036986,2]
[341014725,1730248244211,-431.34,0.00036986,2]
[341014726,1730248244221,-431.34,0.00036986,2]
[341014727,1730248244231,-431.34,0.00036986,2]
[341014728,1730248244240,-431.34,0.00036986,2]
[341014729,1730248244250,-190.85,0.00036986,2]
[341014730,1730248244262,-150.0,0.00036986,2]
[341014731,1730248244271,-150.0,0.00036986,2]
[341014732,1730248244281,-150.0,0.00036986,2]
[341014733,1730248244291,-150.0,0.00036986,2]
[341014734,1730248244300,-150.0,0.00036986,2]
[341014735,1730248244309,-300.0,0.00036986,2]
[341014736,1730248244319,-1550.0,0.00037,2]
[341014737,1730248244329,-900.0,0.00037,38]
[341014738,1730248244338,-170.091,0.00037119,2]
[341014739,1730248244348,-170.091,0.00037119,2]
[341014740,1730248244358,-170.091,0.00037119,2]
[341014741,1730248244367,-170.091,0.00037119,2]
[341014742,1730248244376,-170.091,0.00037119,2]
[341014743,1730248244385,-173.5,0.00037119,2]
[341014744,1730248244395,-16837.40794867,0.0003713,2]
[341014745,1730248244404,-357.10513702,0.00037176,2]
[341014746,1730248244414,-177.681,0.00037196,2]
[341014747,1730248244423,-446.67935363,0.000373,2]
[341014748,1730248244433,-346.43,0.00037336,2]
[341014749,1730248244443,-300.000001,0.00037354,3]
[341014750,1730248244453,-226.7842,0.000374,2]
[341014751,1730248244463,-3199.4286,0.000374,2]
[341014752,1730248244472,-27175.69669929,0.000374,2]
[341014753,1730248244716,-9214.40030962,0.000374,2]
[341014756,1730248246407,-431.34,0.00036164,2]
[341014757,1730248246416,-2505.43990895,0.000374,2]
[341014758,1730248246427,-120339.98858214,0.000374,2]
[341014759,1730248246437,-1091.42706126,0.000374,2]
[341014760,1730248246447,-1091.42706126,0.000374,2]
[341014761,1730248246456,-1087.0,0.00037446,2]
[341014762,1730248246465,-5000.00000099,0.00037499,2]
[341014763,1730248246474,-872.4727978,0.00037499,2]
[341014764,1730248246484,-500.0,0.00037499,2]
[341014765,1730248246493,-9267.21,0.00037499,120]
[341014766,1730248246502,-1042.7738059,0.00037499,2]
[341014767,1730248246514,-3667.69270376,0.000375,2]
[341014768,1730248246523,-126431.49666967,0.000375,2]
[341014769,1730248246533,-53934.27322231,0.000375,30]
[341014774,1730248247807,150.0,0.00017605,2]
[341014775,1730248289563,150.0,0.00017605,2]
[341014776,1730248351980,150.0,0.00017605,2]
[341014777,1730248381873,300.0,0.00019725,2]
[341014778,1730248477331,6541.28573098,0.0002,2]
[341014779,1730248477359,80000.0,0.0002,2]
[341014780,1730248477384,1913458.71426902,0.0002,2]
[341014782,1730248524473,550.0,0.00015,2]
[341014783,1730248525552,600.0,0.00017,2]
[341014784,1730248526855,650.0,0.00019,2]
[341014785,1730248543437,159.07,0.00015342,2]
[341014787,1730248958809,150.0,0.0002,2]
[341014789,1730249065694,156.72,0.00015342,2]
[341014791,1730249146289,-535.3715,0.0003,2]
[341014792,1730249146315,-151.0,0.0003,120]
[341014793,1730249146336,-200.0,0.00030383,2]
[341014794,1730249146359,-159.07,0.0003272,2]
[341014795,1730249146382,-333.78400932,0.00032882,2]
[341014797,1730249249084,-201.58749068,0.00032882,2]
[341014798,1730249249106,-569.94499072,0.00032882,2]
[341014799,1730249254101,-337.7217725,0.00032882,2]
[341014800,1730249254128,-1228.11323678,0.00032882,2]
[341014801,1730249254149,-2143.44493934,0.00032882,2]
[341014802,1730249346105,-180.79506066,0.00032882,2]
[341014803,1730249346126,-818.0,0.000333,3]
[341014804,1730249346149,-231.4,0.000333,10]
[341014805,1730249346169,-258.0,0.000333,3]
[341014806,1730249346189,-6554.54793869,0.000333,2]
[341014807,1730249346211,-497.15,0.00033673,2]
[341014808,1730249346231,-571.23,0.00033673,2]
[341014809,1730249372516,633.45194378,0.00024,120]
[341014815,1730249431544,-594.567063,0.00034173,2]
[341014816,1730249431610,-888.170329,0.00034173,2]
[341014817,1730249431620,-173.21,0.00034345,2]
[341014818,1730249431629,-531.05,0.0003443,2]
[341014819,1730249431638,-335.78,0.0003443,2]
[341014820,1730249431648,-519.67,0.0003443,2]
[341014821,1730249431657,-173.5,0.00034604,2]
[341014822,1730249431666,-900.0,0.00035,36]
[341014823,1730249431676,-250.0,0.00035469,2]
[341014824,1730249431685,-250.0,0.00035481,2]
[341014825,1730249431695,-4984.39,0.00035491,2]
[341014826,1730249431705,-216.97,0.00035511,2]
[341014827,1730249431714,-150.0,0.00035522,7]
[341014828,1730249431723,-329.67,0.00035591,2]
[341014829,1730249431732,-250.0,0.00035633,120]
[341014830,1730249431742,-200.0,0.00035687,2]
[341014831,1730249431751,-784.05,0.00035692,2]
[341014832,1730249431760,-150.0,0.00035723,2]
[341014833,1730249431769,-23900.0,0.00035732,2]
[341014834,1730249431779,-1068.81,0.00035798,2]
[341014835,1730249431788,-497.15,0.00035937,2]
[341014836,1730249431797,-900.0,0.00036,37]
[341014837,1730249431807,-239.08,0.00036009,2]
[341014838,1730249431816,-4933.0,0.00036022,2]
[341014839,1730249431825,-1000.0,0.00036135,2]
[341014840,1730249431834,-170.223,0.00036135,2]
[341014841,1730249431843,-173.21,0.00036153,2]
[341014842,1730249431853,-500.0,0.000363,10]
[341014843,1730249431862,-464.21419738,0.00036425,45]
[341014844,1730249431990,-177.26580262,0.00036425,45]
[341014845,1730249431999,-177.67,0.00036425,120]
[341014846,1730249432009,-163.11,0.00036734,2]
[341014847,1730249432018,-542.90293509,0.00037,38]
[341014848,1730249432029,-357.09706491,0.00037,38]
[341014849,1730249432039,-2013.3819,0.00037164,2]
[341014850,1730249432051,-1393.87020622,0.00037187,2]
[341014851,1730249432059,-152.0,0.00037187,3]
[341014852,1730249432069,-2383.65082887,0.00037194,2]
[341014860,1730249437760,-261.07905798,0.00037194,2]
[341014861,1730249437891,-153.2472789,0.00037194,2]
[341014862,1730249437944,-253.23840258,0.00037194,2]
[341014863,1730249437953,-121.37917235,0.00037196,2]
[341014864,1730249437981,-1272.49103387,0.00037196,2]
[341014865,1730249438127,-1152.50540372,0.00037228,2]
[341014866,1730249438138,-8672.84851415,0.00037248,2]
[341014868,1730249438148,-8672.84851415,0.00037264,2]
[341014870,1730249438158,-3051.21556833,0.00037265,2]
[341014872,1730249438167,-1152.50540372,0.00037276,2]
[341014873,1730249438177,-1152.50540372,0.00037276,2]
[341014875,1730249438186,-3051.21556833,0.00037283,2]
[341014877,1730249438197,-8672.84851415,0.00037298,2]
[341014879,1730249438207,-362.7,0.000373,2]
[341014881,1730249438217,-33369.1439,0.000373,2]
[341014883,1730249438226,-1862.39280792,0.000373,2]
[341015026,1730249439780,-85.72583127,0.000373,2]
[341015109,1730249442668,-2129.7768344,0.000373,2]
[341015110,1730249442756,-108.8635153,0.000373,2]
[341015111,1730249442906,-765.6303769,0.000373,2]
[341015112,1730249442917,-1528.74133421,0.000373,2]
[341015113,1730249442926,-970.34236827,0.00037308,2]
[341015114,1730249442936,-1393.87020622,0.00037315,2]
[341015115,1730249442945,-970.34236827,0.00037329,2]
[341015116,1730249442954,-970.34236827,0.00037329,2]
[341015117,1730249442963,-3051.21556833,0.00037331,2]
[341015118,1730249442972,-3051.21556833,0.00037339,2]
[341015119,1730249442981,-970.34236827,0.00037344,2]
[341015120,1730249442990,-661.98,0.00037355,10]
[341015121,1730249442999,-970.34236827,0.00037356,2]
[341015122,1730249443009,-1393.87020622,0.00037363,2]
[341015123,1730249443018,-8672.84851415,0.00037365,2]
[341015124,1730249443027,-8672.84851415,0.00037368,2]
[341015125,1730249443036,-3051.21556833,0.0003737,2]
[341015126,1730249443045,-1393.87020622,0.00037375,2]
[341015127,1730249443059,-1393.87020622,0.00037379,2]
[341015128,1730249443068,-488.23362308,0.00037386,2]
[341015129,1730249443079,-664.27178064,0.00037386,2]
[341015130,1730249443088,-1152.50540372,0.00037389,2]
[341015131,1730249443098,-1572.77531131,0.00037392,2]
[341015142,1730249445649,-4227.22468869,0.00037392,2]
[341015144,1730249445658,-146.10034453,0.00037392,2]
[341015154,1730249445803,-7232.19999999,0.00037392,2]
[341015228,1730249461874,300.0,0.00019725,2]
[341015229,1730249464542,169.65075,0.00022462,2]
[341015230,1730249550930,181.54,0.00019178,2]
[341015231,1730249642269,300.0,0.00019725,2]
[341015232,1730249746792,154.77,0.00016712,2]
[341015234,1730249829168,158.45,0.00015342,2]
[341015235,1730250329117,550.0,0.00015,2]
[341015236,1730250330187,600.0,0.00017,2]
[341015237,1730250339114,-289.895,0.0002551,2]
[341015238,1730250339133,-812.63958473,0.00027407,2]
[341015239,1730250339154,-158.45,0.00027507,2]
[341015240,1730250339173,-158.46,0.00028323,2]
[341015241,1730250339193,-1491.14941,0.00029799,2]
[341015242,1730250339212,-6774.36291021,0.00029949,2]
[341015243,1730250427104,-200.0,0.000301,2]
[341015244,1730250427125,-150.99,0.00033502,2]
[341015245,1730250427269,-258.7645253,0.00033502,2]
[341015246,1730250537152,171.24,0.00015342,2]
[341015249,1730250549098,-209.57261062,0.00032877,2]
[341015250,1730250549117,-632.35,0.00033183,2]
[341015258,1730250631719,-300.0,0.000342,2]
[341015259,1730250631729,-189.19337848,0.000342,20]
[341015260,1730250635331,-766.71121484,0.000342,20]
[341015261,1730250635343,-122.41540668,0.000342,20]
[341015262,1730250635353,-250.0,0.00034288,120]
[341015263,1730250635363,-9999.99,0.00034288,2]
[341015264,1730250635372,-184.57,0.00034376,2]
[341015265,1730250635382,-1892.5,0.00034426,120]
[341015266,1730250635392,-1234.0,0.00034849,120]
[341015267,1730250635402,-3975.01,0.00035123,2]
[341015268,1730250635412,-150.0,0.00035182,7]
[341015269,1730250635422,-250.0,0.00035206,2]
[341015270,1730250635431,-200.0,0.00035224,2]
[341015271,1730250635442,-170.85,0.00035301,2]
[341015272,1730250635452,-632.35,0.00035447,2]
[341015273,1730250635462,-23900.0,0.00035514,2]
[341015274,1730250635472,-1027.19,0.00035529,2]
[341015275,1730250635481,-1406.25,0.00035544,2]
[341015276,1730250635492,-513.184,0.0003555,42]
[341015277,1730250635501,-150.85,0.00035577,120]
[341015278,1730250635519,-186.2,0.00035588,2]
[341015279,1730250635529,-718.01,0.00035622,2]
[341015280,1730250635539,-184.57,0.00035733,2]
[341015281,1730250635549,-167.63,0.00035796,2]
[341015282,1730250635559,-340.01851236,0.00035926,2]
[341015283,1730250635569,-1000.0,0.00036152,2]
[341015284,1730250635580,-340.01851236,0.00036173,2]
[341015286,1730250635590,-340.01851236,0.00036616,2]
[341015288,1730250635599,-156.51746993,0.00036822,2]
[341015289,1730250635609,-340.01851236,0.00036932,2]
[341015290,1730250635618,-150.0,0.00037065,2]
[341015291,1730250635628,-184.57,0.0003709,2]
[341015292,1730250635637,-340.01851237,0.000371,2]
[341015293,1730250635647,-336.15,0.00037115,10]
[341015294,1730250635657,-170.0,0.00037125,2]
[341015295,1730250635666,-109251.0,0.00037125,2]
[341015296,1730250635676,-2085.09515004,0.00037165,15]
[341015297,1730250635686,-3764.77868709,0.00037191,2]
[341015298,1730250635696,-114927.39504372,0.00037191,2]
[341015299,1730250635706,-2085.09515,0.00037191,15]
[341015300,1730250635715,-2085.09515,0.00037217,15]
[341015301,1730250635725,-2085.09515,0.00037243,15]
[341015302,1730250635735,-1217.7605,0.00037265,2]
[341015303,1730250635745,-2085.09515,0.00037269,15]
[341015304,1730250635754,-150.0,0.00037277,2]
[341015306,1730250635764,-2085.09515,0.00037296,15]
[341015308,1730250635773,-165.15303459,0.000373,2]
[341015310,1730250635782,-165.15303453,0.00037314,2]
[341015312,1730250635791,-2085.09515,0.00037322,15]
[341015314,1730250635801,-165.15303453,0.00037329,2]
[341015316,1730250635810,-165.15303453,0.00037343,2]
[341015318,1730250635820,-906.19833037,0.00037348,15]
[341015321,1730250635924,-1178.89681963,0.00037348,15]
[341015322,1730250635935,-165.15303453,0.00037357,2]
[341015323,1730250635944,-165.15303453,0.00037371,2]
[341015324,1730250635954,-1352.82827972,0.00037374,15]
[341015418,1730250642769,-250.0,0.00036478,120]
[341015419,1730250642779,-185.01395781,0.00037374,15]
[341015420,1730250642890,-547.25291247,0.00037374,15]
[341015421,1730250642900,-165.15303453,0.00037386,2]
[341015422,1730250642909,-1294.54816963,0.00037392,2]
[341015423,1730250642918,-1152.50540372,0.00037397,2]
[341015424,1730250642927,-488.24587216,0.00037398,2]
[341015426,1730250643605,-234.18302206,0.00037398,2]
[341015483,1730250648927,150.0,0.00017605,2]
[341015484,1730250944387,10000.0,0.0002,2]
[341015485,1730251126951,157.0,0.00015342,2]
[341015498,1730251508275,800.0,0.00016,2]
[341015499,1730251508297,800.0,0.00016,2]
[341015500,1730251508321,800.0,0.00016,2]
[341015501,1730251508346,550.0,0.00016,2]
[341015502,1730251508368,138567.25397616,0.00016,2]
[341015505,1730251620972,5834.21114567,0.000145,2]
[341015506,1730251644157,-501.07104031,0.000209,2]
[341015507,1730251686343,150.0,0.00017605,2]
[341015508,1730251688271,190080.41171789,0.00015,2]
[341015510,1730251701562,159.07,0.00015342,2]
[341015511,1730251703321,6113.50053928,0.0001439,2]
[341015514,1730251745105,-679.38041809,0.000209,2]
[341015515,1730251745124,-10000.0,0.00021,2]
[341015516,1730251745144,-458.16582489,0.00021,2]
[341015517,1730251745163,-9591.85684344,0.00021,4]
[341015518,1730251745183,-765.5489673,0.000232,2]
[341015519,1730251745202,-3617.58306055,0.00023332,2]
[341015520,1730251745222,-15526.28912573,0.00023922,2]
[341015521,1730251747107,-42104.14910268,0.00023922,2]
[341015522,1730251747127,-302.27578228,0.00024,7]
[341015523,1730251747145,-2645.95100591,0.0002495,2]
[341015524,1730251747164,-831.26,0.0002495,2]
[341015525,1730251747182,-150.99,0.0002495,2]
[341015526,1730251747202,-33297.78091379,0.0002495,2]
[341015527,1730251747223,-52993.1992631,0.00025,2]
[341015528,1730251747245,-14384.27158622,0.00025,2]
[341015529,1730251747263,-5060.10491021,0.00027,7]
[341015530,1730251747283,-930.42807676,0.00027,30]
[341015531,1730251747302,-500.0,0.0002701,30]
[341015532,1730251747321,-200.0,0.00028731,2]
[341015533,1730251747339,-1111.08,0.00028731,2]
[341015534,1730251747358,-7151.43,0.00028731,2]
[341015535,1730251747376,-250.0,0.00028748,2]
[341015536,1730251747394,-200.0,0.00028912,2]
[341015537,1730251747413,-502.38843279,0.00029,3]
[341015538,1730251747431,-6865.93900907,0.000299,2]
[341015539,1730251747449,-200.0,0.000301,2]
[341015540,1730251747471,-702.05,0.00030245,2]
[341015541,1730251747489,-5734.03386569,0.00030602,2]
[341015542,1730251747507,-5288.6,0.00030602,2]
[341015543,1730251747527,-150.0,0.00032008,2]
[341015544,1730251747545,-632.75,0.00032108,2]
[341015545,1730251747564,-4932.64,0.00032196,2]
[341015546,1730251747583,-627.07,0.0003239,2]
[341015547,1730251747604,-1085.81661232,0.00032408,15]
[341015548,1730251747623,-500.0,0.0003248,2]
[341015549,1730251747643,-500.0,0.0003248,2]
[341015550,1730251747663,-500.0,0.0003248,2]
[341015551,1730251747683,-491.37053578,0.0003248,2]
[341015552,1730251747702,-11229.93,0.00032481,2]
[341015553,1730251747727,-3988.91,0.00032496,2]
[341015554,1730251747746,-17124.0,0.00032498,2]
[341015555,1730251747766,-702.05,0.00032509,2]
[341015556,1730251747785,-1962.32,0.00032691,2]
[341015557,1730251747803,-219.526131,0.00032877,2]